fUST/lending_fUST_20250924
["ID","MTS","AMOUNT","RATE_DAILY","PERIOD"]
[387416592,1758720663139,-480.0,0.00022465,2]
[387416593,1758720663149,-141.93389912,0.00023013,2]
[387416594,1758720663160,-1557.23,0.00023013,2]
[387416595,1758720663170,-480.0,0.00023013,2]
[387416596,1758720663180,-480.0,0.00023013,2]
[387416597,1758720663190,-1032.91,0.00023013,2]
[387416598,1758720663201,-524.23,0.00023013,2]
[387416599,1758720663211,-516.36,0.00023013,2]
[387416600,1758720663221,-815.22,0.00023013,2]
[387416601,1758720663232,-480.0,0.00023013,2]
[387416602,1758720663243,-598.57,0.00023013,2]
[387416603,1758720663253,-788.98,0.00023013,2]
[387416604,1758720663263,-855.66,0.00023013,2]
[387416605,1758720663274,-812.64,0.00023013,2]
[387416606,1758720663284,-820.49,0.00023013,2]
[387416607,1758720663295,-348.32,0.00023013,2]
[387416608,1758720663306,-641.61,0.00023013,2]
[387416609,1758720663318,-487.89,0.00023013,2]
[387416610,1758720663328,-3209.87671706,0.00023116,2]
[387416611,1758720663339,-560.0,0.00023134,2]
[387416612,1758720663348,-265.0,0.00023154,2]
[387416613,1758720663358,-480.0,0.00023287,2]
[387416614,1758720663368,-480.0,0.00023287,2]
[387416615,1758720663378,-562.29,0.00023287,2]
[387416616,1758720663388,-480.0,0.00023287,2]
[387416617,1758720663397,-569.76,0.00023287,2]
[387416618,1758720663407,-2876.78,0.00023287,2]
[387416619,1758720663417,-980.72,0.00023287,2]
[387416620,1758720663427,-480.0,0.00023287,2]
[387416621,1758720663436,-839.62,0.00023287,2]
[387416622,1758720663447,-1218.28,0.00023287,2]
[387416623,1758720663456,-1254.2,0.00023287,2]
[387416624,1758720663466,-480.0,0.00023287,2]
[387416625,1758720663476,-581.91,0.00023287,2]
[387416626,1758720663486,-550.99,0.00023287,2]
[387416627,1758720663497,-1496.34,0.00023287,2]
[387416628,1758720663508,-480.0,0.00023287,2]
[387416629,1758720663520,-585.27,0.00023287,2]
[387416630,1758720663531,-710.77,0.00023287,2]
[387416631,1758720663542,-480.0,0.00023287,2]
[387416632,1758720663552,-1557.23,0.00023287,2]
[387416633,1758720663563,-480.0,0.00023287,2]
[387416634,1758720663573,-591.61673324,0.00023287,2]
[387416635,1758720663584,-1032.91,0.00023287,2]
[387416636,1758720663594,-524.23,0.00023287,2]
[387416637,1758720663604,-516.36,0.00023287,2]
[387416638,1758720663614,-815.22,0.00023287,2]
[387416639,1758720663625,-480.0,0.00023287,2]
[387416640,1758720663635,-598.57,0.00023287,2]
[387416641,1758720663645,-788.98,0.00023287,2]
[387416642,1758720663655,-855.66,0.00023287,2]
[387416643,1758720663666,-812.64,0.00023287,2]
[387416644,1758720663676,-820.49,0.00023287,2]
[387416645,1758720663686,-641.61,0.00023287,2]
[387416646,1758720663696,-487.89,0.00023287,2]
[387416647,1758720663706,-500.0,0.00023288,2]
[387416648,1758720663716,-500.0,0.00023288,2]
[387416649,1758720663726,-500.0,0.00023288,2]
[387416650,1758720663736,-151.0,0.00023288,2]
[387416651,1758720663747,-255.4239308,0.00023288,2]
[387416652,1758720663757,-199.02807492,0.00023288,2]
[387416653,1758720663769,-153.51644454,0.00023288,2]
[387416654,1758720663779,-151.0,0.00023288,2]
[387416655,1758720663789,-151.0,0.00023288,2]
[387416656,1758720663799,-500.0,0.00023288,2]
[387416657,1758720663809,-151.0,0.00023288,2]
[387416658,1758720663819,-151.0,0.00023288,2]
[387416659,1758720663830,-151.0,0.00023288,2]
[387416660,1758720663840,-500.0,0.00023288,2]
[387416661,1758720663851,-500.0,0.00023288,2]
[387416662,1758720663861,-1874.24,0.00023305,2]
[387416663,1758720663871,-3314.72124243,0.0002334,2]
[387416664,1758720663881,-1268.08097058,0.00023348,7]
[387416665,1758720663891,-1138.4626202,0.00023379,2]
[387416666,1758720663901,-5700.8153733,0.00023379,2]
[387416667,1758720663910,-151.0,0.00023379,7]
[387416668,1758720663994,-220.513314,0.00023379,7]
[387416669,1758720664005,-265.0,0.00023407,2]
[387416670,1758720664015,-800.0,0.00023411,2]
[387416671,1758720664024,-4800.17000173,0.0002344,2]
[387416672,1758720664034,-4865.05714992,0.0002344,2]
[387416673,1758720664372,-480.0,0.00019178,2]
[387416674,1758720664383,-480.0,0.00019178,2]
[387416675,1758720664396,-188.48082224,0.00019178,2]
[387416676,1758720664415,-291.51917776,0.00019178,2]
[387416677,1758720664425,-8.48154263,0.00019178,2]
[387416678,1758720664441,-471.51845737,0.00019178,2]
[387416679,1758720664453,-480.0,0.00019452,2]
[387416680,1758720664466,-480.0,0.00019452,2]
[387416681,1758720664484,-480.0,0.00019452,2]
[387416682,1758720664496,-151.0,0.00019726,2]
[387416683,1758720664507,-480.0,0.00019726,2]
[387416684,1758720664526,-567.93,0.00019726,2]
[387416685,1758720664537,-160.0,0.00021665,2]
[387416686,1758720664548,-480.0,0.00022739,2]
[387416687,1758720664559,-480.0,0.00023013,2]
[387416688,1758720664570,-480.0,0.00023287,2]
[387416689,1758720664582,-46712.15933893,0.0002344,2]
[387416690,1758720664771,-480.0,0.00019178,2]
[387416691,1758720664790,-480.0,0.00019452,2]
[387416692,1758720664803,-165.72127738,0.00019726,2]
[387416693,1758720664827,-314.27872262,0.00019726,2]
[387416694,1758720664840,-480.0,0.0002,2]
[387416695,1758720664856,-120.2280891,0.0002344,2]
[387416696,1758720664873,-13211.89151297,0.0002344,2]
[387416705,1758720846082,412378.041478,0.0002739,120]
[387416706,1758720920215,-175.98864814,0.00018153,2]
[387416712,1758721185842,572.70398207,0.00027397,120]
[387416713,1758721187020,150.0,0.00023426,30]
[387416725,1758721593095,-63.70048936,0.00018153,2]
[387416726,1758721593117,-159.03404199,0.00019078,2]
[387416748,1758721831958,-785.92466136,0.00019078,2]
[387416749,1758721831969,-114.47089512,0.00019078,2]
[387416750,1758721832016,-549.30598622,0.00019078,2]
[387416751,1758721832028,-1008.51461685,0.00019078,2]
[387416752,1758721832079,-704.25000015,0.00019078,2]
[387416753,1758721832092,-86.08046079,0.00019078,2]
[387416754,1758721832103,-300.0,0.00019165,2]
[387416755,1758721832112,-300.0,0.00019165,2]
[387416756,1758721832121,-1200.0,0.00019165,2]
[387416757,1758721832131,-84.93260851,0.00019166,2]
[387416758,1758721832145,-215.06739149,0.00019166,2]
[387416759,1758721832154,-300.0,0.00019166,2]
[387416760,1758721832163,-60.02157816,0.00019166,2]
[387416761,1758721832175,-239.97842184,0.00019166,2]
[387416762,1758721832184,-282.34546992,0.00019168,3]
[387416811,1758721837905,-154.18453008,0.00019168,3]
[387416813,1758721837919,-363.78,0.00019168,3]
[387416815,1758721837929,-181.89,0.00019168,3]
[387416816,1758721837939,-545.68,0.00019168,3]
[387416817,1758721837949,-1200.0,0.00019175,2]
[387416818,1758721837958,-245.71029824,0.00019177,2]
[387416819,1758721837968,-500.0,0.00019177,2]
[387416820,1758721837978,-500.0,0.00019177,2]
[387416821,1758721837988,-500.0,0.00019177,2]
[387416822,1758721838001,-500.0,0.00019177,2]
[387416823,1758721838012,-632.02619857,0.00019177,2]
[387416824,1758721838022,-500.0,0.00019177,2]
[387416825,1758721838032,-500.0,0.00019177,2]
[387416826,1758721838042,-500.0,0.00019177,2]
[387416827,1758721838052,-500.0,0.00019177,2]
[387416828,1758721838062,-500.0,0.00019177,2]
[387416829,1758721838072,-300.0,0.00019177,2]
[387416830,1758721838082,-215.22477649,0.00019177,2]
[387416831,1758721838092,-500.0,0.00019177,2]
[387416832,1758721838102,-495.37129117,0.00019178,2]
[387416833,1758721838112,-480.0,0.00019178,2]
[387416834,1758721838122,-485.52224,0.00019178,2]
[387416835,1758721838132,-191.28855677,0.00019178,2]
[387416836,1758721838143,-541.17494909,0.00019178,2]
[387416837,1758721838152,-477.25742681,0.00019178,2]
[387416838,1758721838162,-480.0,0.00019178,2]
[387416839,1758721838172,-551.21201223,0.00019178,2]
[387416840,1758721838182,-480.0,0.00019178,2]
[387416841,1758721838192,-480.0,0.00019178,2]
[387416842,1758721838201,-480.0,0.00019178,2]
[387416843,1758721838211,-480.0,0.00019178,2]
[387416844,1758721838220,-480.0,0.00019178,2]
[387416845,1758721838230,-521.73427681,0.00019178,3]
[387416846,1758721838239,-207.84716375,0.00019178,2]
[387416847,1758721838251,-480.0,0.00019178,2]
[387416848,1758721838261,-480.0,0.00019178,2]
[387416849,1758721838270,-480.0,0.00019178,2]
[387416850,1758721838280,-480.0,0.00019178,2]
[387416851,1758721838289,-480.0,0.00019178,2]
[387416852,1758721838298,-18.27692513,0.00019178,2]
[387416853,1758721838312,-461.72307487,0.00019178,2]
[387416854,1758721838321,-480.0,0.00019178,2]
[387416855,1758721838331,-501.12385068,0.00019178,2]
[387416856,1758721838340,-480.0,0.00019178,2]
[387416857,1758721838350,-480.0,0.00019178,2]
[387416858,1758721838359,-484.08300191,0.00019178,2]
[387416859,1758721838370,-480.0,0.00019178,2]
[387416860,1758721838379,-659.47,0.00019178,2]
[387416861,1758721838389,-631.99,0.00019178,2]
[387416862,1758721838399,-631.99,0.00019178,2]
[387416863,1758721838408,-631.99,0.00019178,2]
[387416864,1758721838418,-480.0,0.00019178,2]
[387416865,1758721838427,-480.0,0.00019178,2]
[387416866,1758721838437,-205.25282099,0.00019178,2]
[387416867,1758721838446,-480.0,0.00019178,2]
[387416868,1758721838455,-480.0,0.00019178,2]
[387416869,1758721838465,-137.44941755,0.00019178,2]
[387416870,1758721838477,-342.55058245,0.00019178,2]
[387416871,1758721838487,-480.0,0.00019178,2]
[387416872,1758721838496,-481.92326208,0.00019178,2]
[387416873,1758721838506,-480.0,0.00019178,2]
[387416874,1758721838515,-480.0,0.00019178,2]
[387416875,1758721838525,-480.0,0.00019178,2]
[387416876,1758721838535,-480.0,0.00019178,2]
[387416877,1758721838544,-480.0,0.00019178,2]
[387416878,1758721838553,-480.0,0.00019178,2]
[387416879,1758721838563,-480.0,0.00019178,2]
[387416880,1758721838572,-480.0,0.00019178,2]
[387416881,1758721838582,-480.0,0.00019178,2]
[387416882,1758721838591,-480.0,0.00019178,2]
[387416883,1758721838601,-584.94350255,0.00019178,2]
[387416884,1758721838611,-480.0,0.00019178,2]
[387416885,1758721838620,-500.0,0.00019178,2]
[387416886,1758721838629,-480.0,0.00019178,2]
[387416887,1758721838639,-487.34884815,0.00019178,2]
[387416888,1758721838648,-480.0,0.00019178,2]
[387416889,1758721838658,-480.0,0.00019178,2]
[387416890,1758721838667,-480.0,0.00019178,2]
[387416891,1758721838676,-480.0,0.00019178,2]
[387416892,1758721838686,-480.0,0.00019178,2]
[387416893,1758721838696,-480.0,0.00019178,2]
[387416894,1758721838705,-480.0,0.00019178,2]
[387416895,1758721838715,-480.0,0.00019178,2]
[387416896,1758721838725,-480.69588768,0.00019178,2]
[387416897,1758721838734,-480.0,0.00019178,2]
[387416898,1758721838744,-480.0,0.00019178,2]
[387416899,1758721838753,-481.69730342,0.00019178,2]
[387416900,1758721838763,-480.0,0.00019178,2]
[387416901,1758721838773,-480.0,0.00019178,2]
[387416902,1758721838782,-480.70614242,0.00019178,2]
[387416903,1758721838792,-480.0,0.00019178,2]
[387416904,1758721838802,-480.0,0.00019178,2]
[387416905,1758721838811,-480.0,0.00019178,2]
[387416906,1758721838821,-480.0,0.00019178,2]
[387416907,1758721838831,-480.0,0.00019178,2]
[387416908,1758721838840,-480.0,0.00019178,2]
[387416909,1758721838850,-480.0,0.00019178,2]
[387416910,1758721838860,-480.0,0.00019178,2]
[387416911,1758721838870,-480.0,0.00019178,2]
[387416912,1758721838880,-480.0,0.00019178,2]
[387416913,1758721838890,-480.0,0.00019178,2]
[387416914,1758721838899,-480.0,0.00019178,2]
[387416915,1758721838910,-492.97807474,0.00019178,2]
[387416916,1758721838921,-481.71637514,0.00019178,2]
[387416917,1758721838931,-480.0,0.00019178,2]
[387416918,1758721838941,-257.92046406,0.00019178,2]
[387416919,1758721838955,-222.07953594,0.00019178,2]
[387416920,1758721838966,-480.0,0.00019178,2]
[387416921,1758721838979,-480.0,0.00019178,2]
[387416922,1758721838988,-480.0,0.00019178,2]
[387416923,1758721838998,-480.0,0.00019178,2]
[387416924,1758721839008,-480.0,0.00019178,2]
[387416925,1758721839017,-480.0,0.00019178,2]
[387416926,1758721839027,-480.0,0.00019178,2]
[387416927,1758721839036,-480.0,0.00019178,2]
[387416928,1758721839046,-480.0,0.00019178,2]
[387416929,1758721839060,-480.0,0.00019178,2]
[387416930,1758721839074,-480.0,0.00019178,2]
[387416931,1758721839087,-480.0,0.00019178,2]
[387416932,1758721839100,-480.0,0.00019178,2]
[387416933,1758721839111,-480.0,0.00019178,2]
[387416934,1758721839122,-480.0,0.00019178,2]
[387416935,1758721839134,-480.0,0.00019178,2]
[387416936,1758721839146,-480.0,0.00019178,2]
[387416937,1758721839158,-480.0,0.00019178,2]
[387416938,1758721839170,-480.0,0.00019178,2]
[387416939,1758721839182,-244.11456144,0.00019178,2]
[387416940,1758721839203,-235.88543856,0.00019178,2]
[387416941,1758721839215,-480.0,0.00019178,2]
[387416942,1758721839227,-480.0,0.00019178,2]
[387416943,1758721839240,-480.0,0.00019178,2]
[387416944,1758721839254,-480.0,0.00019178,2]
[387416945,1758721839267,-480.0,0.00019178,2]
[387416946,1758721839279,-480.0,0.00019178,2]
[387416947,1758721839290,-480.0,0.00019178,2]
[387416948,1758721839302,-485.60223047,0.00019178,2]
[387416949,1758721839314,-480.0,0.00019178,2]
[387416950,1758721839325,-480.67978023,0.00019178,2]
[387416951,1758721839338,-364.05301282,0.00019178,2]
[387416952,1758721839350,-480.0,0.00019178,2]
[387416953,1758721839362,-480.0,0.00019178,2]
[387416954,1758721839374,-203.62478715,0.00019178,2]
[387416955,1758721839386,-480.0,0.00019178,2]
[387416956,1758721839396,-480.0,0.00019178,2]
[387416957,1758721839408,-604.80489222,0.00019178,2]
[387416958,1758721839419,-480.0,0.00019178,2]
[387416959,1758721839431,-480.0,0.00019178,2]
[387416960,1758721839444,-480.0,0.00019178,2]
[387416961,1758721839456,-480.0,0.00019178,2]
[387416962,1758721839470,-480.0,0.00019178,2]
[387416963,1758721839481,-480.0,0.00019178,2]
[387416964,1758721839494,-483.996343,0.00019178,2]
[387416965,1758721839506,-480.0,0.00019178,2]
[387416966,1758721839519,-480.0,0.00019178,2]
[387416967,1758721839532,-480.0,0.00019178,2]
[387416968,1758721839544,-480.0,0.00019178,2]
[387416969,1758721839555,-480.0,0.00019178,2]
[387416970,1758721839565,-480.0,0.00019178,2]
[387416971,1758721839575,-480.0,0.00019178,2]
[387416972,1758721839586,-480.0,0.00019178,2]
[387416973,1758721839597,-480.0,0.00019178,2]
[387416974,1758721839609,-480.0,0.00019178,2]
[387416975,1758721839623,-480.0,0.00019178,2]
[387416976,1758721839636,-480.0,0.00019178,2]
[387416978,1758721839647,-480.0,0.00019178,2]
[387416979,1758721839656,-480.0,0.00019178,2]
[387416980,1758721839667,-480.0,0.00019178,2]
[387416982,1758721839678,-480.0,0.00019178,2]
[387416984,1758721839690,-480.0,0.00019178,2]
[387416986,1758721839702,-480.0,0.00019178,2]
[387416988,1758721839713,-480.0,0.00019178,2]
[387416990,1758721839724,-480.0,0.00019178,2]
[387416992,1758721839734,-480.0,0.00019178,2]
[387416994,1758721839745,-480.0,0.00019178,2]
[387416997,1758721839756,-480.0,0.00019178,2]
[387416999,1758721839768,-480.0,0.00019178,2]
[387417001,1758721839780,-482.11765516,0.00019178,2]
[387417003,1758721839790,-480.0,0.00019178,2]
[387417005,1758721839801,-480.0,0.00019178,2]
[387417007,1758721839812,-480.0,0.00019178,2]
[387417009,1758721839823,-480.0,0.00019178,2]
[387417011,1758721839834,-480.0,0.00019178,2]
[387417013,1758721839844,-480.0,0.00019178,2]
[387417016,1758721839856,-480.0,0.00019178,2]
[387417018,1758721839867,-480.0,0.00019178,2]
[387417020,1758721839879,-480.0,0.00019178,2]
[387417022,1758721839890,-480.0,0.00019178,2]
[387417024,1758721839901,-480.0,0.00019178,2]
[387417026,1758721839913,-480.0,0.00019178,2]
[387417028,1758721839924,-480.0,0.00019178,2]
[387417030,1758721839935,-480.0,0.00019178,2]
[387417033,1758721839946,-480.0,0.00019178,2]
[387417035,1758721839958,-445.73128931,0.00019178,2]
[387417037,1758721839969,-246.78095805,0.00019178,2]
[387417039,1758721839980,-480.0,0.00019178,2]
[387417041,1758721839991,-480.0,0.00019178,2]
[387417043,1758721840003,-480.0,0.00019178,2]
[387417045,1758721840014,-480.0,0.00019178,2]
[387417048,1758721840026,-480.0,0.00019178,2]
[387417050,1758721840038,-510.23126763,0.00019178,2]
[387417052,1758721840049,-480.0,0.00019178,2]
[387417054,1758721840060,-480.0,0.00019178,2]
[387417056,1758721840071,-488.24126524,0.00019178,2]
[387417058,1758721840082,-480.0,0.00019178,2]
[387417060,1758721840093,-486.12,0.00019178,2]
[387417062,1758721840104,-482.64049258,0.00019178,2]
[387417065,1758721840115,-480.0,0.00019178,2]
[387417067,1758721840126,-480.0,0.00019178,2]
[387417069,1758721840137,-480.0,0.00019178,2]
[387417071,1758721840147,-157.7039087,0.00019178,2]
[387417073,1758721840159,-480.0,0.00019178,2]
[387417075,1758721840170,-542.95231655,0.00019178,2]
[387417078,1758721840181,-480.0,0.00019178,2]
[387417080,1758721840192,-480.0,0.00019178,2]
[387417082,1758721840203,-480.0,0.00019178,2]
[387417084,1758721840214,-480.0,0.00019178,2]
[387417086,1758721840225,-480.0,0.00019178,2]
[387417088,1758721840236,-480.0,0.00019178,2]
[387417090,1758721840247,-480.0,0.00019178,2]
[387417092,1758721840258,-482.0211243,0.00019178,2]
[387417095,1758721840269,-480.0,0.00019178,2]
[387417097,1758721840280,-480.0,0.00019178,2]
[387417099,1758721840291,-480.0,0.00019178,2]
[387417101,1758721840302,-480.0,0.00019178,2]
[387417103,1758721840312,-480.0,0.00019178,2]
[387417106,1758721840324,-480.0,0.00019178,2]
[387417108,1758721840335,-480.0,0.00019178,2]
[387417110,1758721840346,-480.0,0.00019178,2]
[387417112,1758721840355,-480.0,0.00019178,2]
[387417114,1758721840365,-481.97153496,0.00019178,2]
[387417116,1758721840375,-407.00247866,0.00019178,2]
[387417118,1758721840384,-480.0,0.00019178,2]
[387417120,1758721840393,-480.0,0.00019178,2]
[387417122,1758721840402,-269.04493991,0.00019178,2]
[387417139,1758721840553,-480.0,0.00019178,2]
[387417141,1758721840569,-480.0,0.00019178,2]
[387417143,1758721840578,-480.0,0.00019178,2]
[387417145,1758721840588,-480.0,0.00019178,2]
[387417147,1758721840598,-485.07611404,0.00019178,2]
[387417149,1758721840607,-487.72028717,0.00019178,2]
[387417151,1758721840617,-480.0,0.00019178,2]
[387417153,1758721840627,-480.0,0.00019178,2]
[387417155,1758721840636,-480.0,0.00019178,2]
[387417157,1758721840649,-480.0,0.00019178,2]
[387417159,1758721840658,-480.0,0.00019178,2]
[387417161,1758721840667,-482.16205145,0.00019178,2]
[387417163,1758721840677,-500.0,0.00019178,2]
[387417166,1758721840689,-500.0,0.00019178,2]
[387417168,1758721840698,-460.11240327,0.00019178,2]
[387417169,1758721840708,-480.0,0.00019178,2]
[387417171,1758721840719,-480.0,0.00019178,2]
[387417173,1758721840728,-480.0,0.00019178,2]
[387417175,1758721840737,-480.0,0.00019178,2]
[387417178,1758721840751,-480.0,0.00019178,2]
[387417179,1758721840760,-480.0,0.00019178,2]
[387417181,1758721840769,-500.0,0.00019178,2]
[387417183,1758721840780,-500.0,0.00019178,2]
[387417185,1758721840790,-500.0,0.00019178,2]
[387417187,1758721840800,-500.0,0.00019178,2]
[387417189,1758721840809,-500.0,0.00019178,2]
[387417192,1758721840822,-500.0,0.00019178,2]
[387417193,1758721840831,-500.0,0.00019178,2]
[387417196,1758721840841,-480.0,0.00019178,2]
[387417198,1758721840854,-500.0,0.00019178,2]
[387417200,1758721840869,-500.0,0.00019178,2]
[387417202,1758721840879,-500.0,0.00019178,2]
[387417204,1758721840888,-480.0,0.00019178,2]
[387417205,1758721840897,-480.0,0.00019178,2]
[387417207,1758721840907,-480.0,0.00019178,2]
[387417209,1758721840920,-481.40249902,0.00019178,2]
[387417211,1758721840929,-480.0,0.00019178,2]
[387417213,1758721840939,-482.4347397,0.00019178,2]
[387417215,1758721840948,-506.20285795,0.00019178,2]
[387417217,1758721840958,-480.0,0.00019178,2]
[387417219,1758721840967,-480.0,0.00019178,2]
[387417221,1758721840976,-480.65331481,0.00019178,2]
[387417223,1758721840986,-500.0,0.00019178,2]
[387417225,1758721840996,-500.0,0.00019178,2]
[387417227,1758721841008,-500.0,0.00019178,2]
[387417229,1758721841018,-500.0,0.00019178,2]
[387417231,1758721841027,-500.0,0.00019178,2]
[387417233,1758721841037,-500.0,0.00019178,2]
[387417236,1758721841046,-500.0,0.00019178,2]
[387417237,1758721841056,-500.0,0.00019178,2]
[387417239,1758721841065,-500.0,0.00019178,2]
[387417241,1758721841075,-500.0,0.00019178,2]
[387417244,1758721841085,-500.0,0.00019178,2]
[387417246,1758721841095,-500.0,0.00019178,2]
[387417247,1758721841104,-500.0,0.00019178,2]
[387417249,1758721841114,-500.0,0.00019178,2]
[387417251,1758721841123,-488.28416422,0.00019178,2]
[387417253,1758721841132,-272.77839123,0.00019178,2]
[387417255,1758721841142,-480.0,0.00019178,2]
[387417257,1758721841151,-480.0,0.00019178,2]
[387417259,1758721841161,-512.90134597,0.00019178,2]
[387417261,1758721841172,-480.0,0.00019178,2]
[387417263,1758721841181,-480.0,0.00019178,2]
[387417265,1758721841191,-480.0,0.00019178,2]
[387417267,1758721841200,-480.0,0.00019178,2]
[387417269,1758721841211,-480.0,0.00019178,2]
[387417271,1758721841221,-484.274025,0.00019178,2]
[387417273,1758721841230,-480.0,0.00019178,2]
[387417275,1758721841239,-480.0,0.00019178,2]
[387417277,1758721841249,-1921.83,0.00019178,2]
[387417279,1758721841259,-500.0,0.00019178,2]
[387417281,1758721841268,-480.0,0.00019178,2]
[387417283,1758721841278,-500.0,0.00019178,2]
[387417285,1758721841288,-500.0,0.00019178,2]
[387417287,1758721841298,-480.0,0.00019178,2]
[387417289,1758721841307,-500.0,0.00019178,2]
[387417291,1758721841317,-500.0,0.00019178,2]
[387417293,1758721841327,-500.0,0.00019178,2]
[387417295,1758721841336,-500.0,0.00019178,2]
[387417297,1758721841345,-500.0,0.00019178,2]
[387417299,1758721841354,-500.0,0.00019178,2]
[387417301,1758721841364,-500.0,0.00019178,2]
[387417303,1758721841373,-500.0,0.00019178,2]
[387417304,1758721841383,-480.0,0.00019178,2]
[387417305,1758721841392,-500.0,0.00019178,2]
[387417306,1758721841401,-500.0,0.00019178,2]
[387417307,1758721841411,-500.0,0.00019178,2]
[387417308,1758721841420,-185.31017089,0.00019178,2]
[387417309,1758721841430,-212.28233121,0.00019178,2]
[387417310,1758721841439,-480.0,0.00019178,2]
[387417311,1758721841449,-433.59106197,0.00019178,2]
[387417312,1758721841458,-500.0,0.00019178,2]
[387417313,1758721841467,-500.0,0.00019178,2]
[387417315,1758721841477,-500.0,0.00019178,2]
[387417317,1758721841486,-500.0,0.00019178,2]
[387417319,1758721841495,-563.97122713,0.00019178,2]
[387417321,1758721841506,-500.0,0.00019178,2]
[387417323,1758721841516,-500.0,0.00019178,2]
[387417325,1758721841525,-500.0,0.00019178,2]
[387417327,1758721841535,-500.0,0.00019178,2]
[387417329,1758721841544,-480.0,0.00019178,2]
[387417331,1758721841553,-500.0,0.00019178,2]
[387417333,1758721841563,-628.18390834,0.00019178,2]
[387417335,1758721841572,-480.0,0.00019178,2]
[387417337,1758721841582,-480.0,0.00019178,2]
[387417339,1758721841591,-480.0,0.00019178,2]
[387417341,1758721841601,-480.0,0.00019178,2]
[387417343,1758721841610,-480.0,0.00019178,2]
[387417345,1758721841620,-480.0,0.00019178,2]
[387417347,1758721841629,-482.52678512,0.00019178,2]
[387417349,1758721841639,-480.0,0.00019178,2]
[387417351,1758721841649,-480.0,0.00019178,2]
[387417353,1758721841659,-480.0,0.00019178,2]
[387417355,1758721841668,-480.0,0.00019178,2]
[387417357,1758721841677,-480.0,0.00019178,2]
[387417359,1758721841687,-480.0,0.00019178,2]
[387417361,1758721841696,-480.0,0.00019178,2]
[387417363,1758721841705,-480.0,0.00019178,2]
[387417365,1758721841715,-480.0,0.00019178,2]
[387417367,1758721841724,-480.0,0.00019178,2]
[387417369,1758721841733,-480.0,0.00019178,2]
[387417371,1758721841742,-480.0,0.00019178,2]
[387417373,1758721841753,-480.0,0.00019178,2]
[387417375,1758721841763,-480.0,0.00019178,2]
[387417377,1758721841773,-480.0,0.00019178,2]
[387417379,1758721841783,-480.0,0.00019178,2]
[387417381,1758721841792,-480.0,0.00019178,2]
[387417383,1758721841802,-480.0,0.00019178,2]
[387417385,1758721841811,-480.0,0.00019178,2]
[387417387,1758721841820,-480.0,0.00019178,2]
[387417389,1758721841830,-480.0,0.00019178,2]
[387417391,1758721841840,-480.0,0.00019178,2]
[387417393,1758721841849,-480.0,0.00019178,2]
[387417395,1758721841858,-480.0,0.00019178,2]
[387417397,1758721841867,-841.42,0.00019178,2]
[387417399,1758721841877,-481.44435965,0.00019178,2]
[387417401,1758721841886,-480.0,0.00019178,2]
[387417403,1758721841895,-480.0,0.00019178,2]
[387417405,1758721841905,-180.35453696,0.00019178,2]
[387417407,1758721841918,-480.0,0.00019178,2]